fUSD/lending_fUSD_20260516
["ID","MTS","AMOUNT","RATE_DAILY","PERIOD"]
[422425651,1778936104000,-215.370894,0.00041096,60]
[422425640,1778936104000,-151.0,0.00041096,120]
[422425703,1778936104000,-2076.27761563,0.000411,120]
[422425672,1778936104000,-315.042062,0.00041096,120]
[422425678,1778936104000,-315.042058,0.00041096,120]
[422425680,1778936104000,-215.370894,0.00041096,60]
[422425682,1778936104000,-215.370893,0.00041096,60]
[422425679,1778936104000,-232.223232,0.00041096,120]
[422425681,1778936104000,-215.370894,0.00041096,60]
[422425686,1778936104000,-5000.0,0.00041096,120]
[422425684,1778936104000,-5000.0,0.00041096,120]
[422425688,1778936104000,-150.0,0.00041096,60]
[422425687,1778936104000,-8039.0,0.00041096,120]
[422425683,1778936104000,-222.886123,0.00041096,120]
[422425690,1778936104000,-4304.59644109,0.00041096,120]
[422425689,1778936104000,-2572.17313446,0.00041096,120]
[422425693,1778936104000,-6704.53630537,0.00041096,120]
[422425695,1778936104000,-2206.62818964,0.00041096,120]
[422425691,1778936104000,-167.3563342,0.00041096,120]
[422425692,1778936104000,-4413.25637929,0.00041096,120]
[422425694,1778936104000,-649.19932097,0.00041096,120]
[422425697,1778936104000,-172.32666666,0.00041096,120]
[422425700,1778936104000,-150.0,0.00041099,120]
[422425699,1778936104000,-521.94008854,0.00041096,120]
[422425696,1778936104000,-172.32999999,0.00041096,60]
[422425698,1778936104000,-500.0,0.00041096,120]
[422425702,1778936104000,-152.0,0.000411,120]
[422425701,1778936104000,-100103.3,0.000411,14]
[422425652,1778936104000,-315.042062,0.00041096,120]
[422425704,1778936104000,-646.11954557,0.000411,120]
[422425673,1778936104000,-215.370894,0.00041096,60]
[422425669,1778936104000,-215.370894,0.00041096,60]
[422425685,1778936104000,-5000.0,0.00041096,120]
[422425670,1778936104000,-315.042062,0.00041096,120]
[422425645,1778936104000,-215.370894,0.00041096,60]
[422425674,1778936104000,-315.042062,0.00041096,120]
[422425646,1778936104000,-315.042062,0.00041096,120]
[422425643,1778936104000,-691.116509,0.00041096,120]
[422425648,1778936104000,-215.370894,0.00041096,60]
[422425642,1778936104000,-315.042062,0.00041096,120]
[422425647,1778936104000,-691.116509,0.00041096,120]
[422425649,1778936104000,-315.042062,0.00041096,120]
[422425663,1778936104000,-215.370894,0.00041096,60]
[422425654,1778936104000,-215.370894,0.00041096,60]
[422425653,1778936104000,-691.116509,0.00041096,120]
[422425657,1778936104000,-215.370894,0.00041096,60]
[422425662,1778936104000,-315.042062,0.00041096,120]
[422425660,1778936104000,-315.042062,0.00041096,120]
[422425644,1778936104000,-202.081859,0.00041096,120]
[422425655,1778936104000,-315.042062,0.00041096,120]
[422425664,1778936104000,-315.042062,0.00041096,120]
[422425671,1778936104000,-215.370894,0.00041096,60]
[422425667,1778936104000,-215.370894,0.00041096,60]
[422425677,1778936104000,-215.370894,0.00041096,60]
[422425665,1778936104000,-215.370894,0.00041096,60]
[422425675,1778936104000,-151.0,0.00041096,120]
[422425668,1778936104000,-315.042062,0.00041096,120]
[422425666,1778936104000,-315.042062,0.00041096,120]
[422425661,1778936104000,-215.370894,0.00041096,60]
[422425656,1778936104000,-691.116517,0.00041096,120]
[422425658,1778936104000,-315.042062,0.00041096,120]
[422425659,1778936104000,-215.370894,0.00041096,60]
[422425676,1778936104000,-315.042062,0.00041096,120]
[422425744,1778936105000,-1106.68753401,0.000411,120]
[422425742,1778936105000,-1507.61227299,0.000411,120]
[422425743,1778936105000,-1507.61,0.000411,120]
[422425745,1778936105000,-1106.68753401,0.000411,120]
[422425735,1778936105000,-1507.61227299,0.000411,120]
[422425737,1778936105000,-1507.61227299,0.000411,120]
[422425740,1778936105000,-1507.61227299,0.000411,120]
[422425739,1778936105000,-1507.61227299,0.000411,120]
[422425741,1778936105000,-1507.61227299,0.000411,120]
[422425738,1778936105000,-1507.61227299,0.000411,120]
[422425747,1778936105000,-1106.68753401,0.000411,120]
[422425746,1778936105000,-1106.68753401,0.000411,120]
[422425748,1778936105000,-1106.68753401,0.000411,120]
[422425753,1778936105000,-1106.68753401,0.000411,120]
[422425750,1778936105000,-1106.68753401,0.000411,120]
[422425749,1778936105000,-1106.68753401,0.000411,120]
[422425759,1778936105000,-1106.68753401,0.000411,120]
[422425751,1778936105000,-1106.68753401,0.000411,120]
[422425758,1778936105000,-1106.68753401,0.000411,120]
[422425754,1778936105000,-1106.68753401,0.000411,120]
[422425756,1778936105000,-1106.68753401,0.000411,120]
[422425755,1778936105000,-1106.68753401,0.000411,120]
[422425757,1778936105000,-1106.68753401,0.000411,120]
[422425761,1778936105000,-1106.68753401,0.000411,120]
[422425770,1778936105000,-2582.27091269,0.000411,120]
[422425733,1778936105000,-1507.61227299,0.000411,120]
[422425752,1778936105000,-1106.68753401,0.000411,120]
[422425734,1778936105000,-1507.61227299,0.000411,120]
[422425772,1778936105000,-2582.27091269,0.000411,120]
[422425732,1778936105000,-1507.61227299,0.000411,120]
[422425705,1778936105000,-646.11954557,0.000411,120]
[422425706,1778936105000,-646.11954557,0.000411,120]
[422425707,1778936105000,-646.11954557,0.000411,120]
[422425708,1778936105000,-646.11954557,0.000411,120]
[422425711,1778936105000,-646.11954557,0.000411,120]
[422425709,1778936105000,-646.11954557,0.000411,120]
[422425713,1778936105000,-646.11954557,0.000411,120]
[422425712,1778936105000,-646.11954557,0.000411,120]
[422425723,1778936105000,-646.11,0.000411,120]
[422425724,1778936105000,-1507.61227299,0.000411,120]
[422425717,1778936105000,-646.11954557,0.000411,120]
[422425718,1778936105000,-646.11954557,0.000411,120]
[422425736,1778936105000,-1507.61227299,0.000411,120]
[422425714,1778936105000,-646.11954557,0.000411,120]
[422425716,1778936105000,-646.11954557,0.000411,120]
[422425720,1778936105000,-646.11954557,0.000411,120]
[422425719,1778936105000,-646.11954557,0.000411,120]
[422425715,1778936105000,-646.11954557,0.000411,120]
[422425721,1778936105000,-646.11954557,0.000411,120]
[422425725,1778936105000,-1507.61227299,0.000411,120]
[422425727,1778936105000,-1507.61227299,0.000411,120]
[422425728,1778936105000,-1507.61227299,0.000411,120]
[422425726,1778936105000,-1507.61227299,0.000411,120]
[422425731,1778936105000,-1507.61227299,0.000411,120]
[422425730,1778936105000,-1507.61227299,0.000411,120]
[422425729,1778936105000,-1507.61227299,0.000411,120]
[422425722,1778936105000,-646.11954557,0.000411,120]
[422425769,1778936105000,-2582.27091269,0.000411,120]
[422425710,1778936105000,-646.11954557,0.000411,120]
[422425760,1778936105000,-1106.68753401,0.000411,120]
[422425797,1778936105000,-1000.0,0.000412,120]
[422425799,1778936105000,-1000.0,0.000412,120]
[422425798,1778936105000,-1000.0,0.000412,120]
[422425801,1778936105000,-1000.0,0.000412,120]
[422425800,1778936105000,-1000.0,0.000412,120]
[422425806,1778936105000,-322.10229082,0.00041221,60]
[422425802,1778936105000,-1000.0,0.000412,120]
[422425803,1778936105000,-1000.0,0.000412,120]
[422425807,1778936105000,-150.0,0.00041224,120]
[422425808,1778936105000,-1212.51,0.00041227,120]
[422425804,1778936105000,-1000.0,0.000412,120]
[422425805,1778936105000,-100380.0,0.000412,30]
[422425795,1778936105000,-160.0,0.000412,55]
[422425820,1778936105000,-250.0,0.00041311,100]
[422425812,1778936105000,-1000.0,0.0004125,90]
[422425811,1778936105000,-245.93,0.0004125,120]
[422425813,1778936105000,-8104.28756946,0.0004126,7]
[422425819,1778936105000,-150.0,0.00041305,120]
[422425814,1778936105000,-228.49881883,0.00041261,7]
[422425818,1778936105000,-211.0,0.000413,120]
[422425816,1778936105000,-330.0,0.00041291,90]
[422425821,1778936105000,-150.0,0.00041313,120]
[422425815,1778936105000,-543.37882569,0.00041291,60]
[422425817,1778936105000,-170.0,0.000413,3]
[422425822,1778936105000,-11167.51595869,0.0004133,7]
[422425771,1778936105000,-2582.27091269,0.000411,120]
[422425809,1778936105000,-250.0,0.0004124,100]
[422425791,1778936105000,-250.0,0.00041164,100]
[422425810,1778936105000,-1447.1,0.0004125,120]
[422425788,1778936105000,-275.0,0.0004115,120]
[422425762,1778936105000,-1106.68753401,0.000411,120]
[422425794,1778936105000,-722.91216237,0.000412,120]
[422425764,1778936105000,-2582.27091269,0.000411,120]
[422425765,1778936105000,-2582.27091269,0.000411,120]
[422425768,1778936105000,-2582.27091269,0.000411,120]
[422425766,1778936105000,-2582.27091269,0.000411,120]
[422425767,1778936105000,-2582.27091269,0.000411,120]
[422425763,1778936105000,-1106.68,0.000411,120]
[422425773,1778936105000,-2582.27091269,0.000411,120]
[422425777,1778936105000,-2582.27091269,0.000411,120]
[422425778,1778936105000,-2582.27091269,0.000411,120]
[422425775,1778936105000,-2582.27091269,0.000411,120]
[422425776,1778936105000,-2582.27091269,0.000411,120]
[422425779,1778936105000,-2582.27091269,0.000411,120]
[422425774,1778936105000,-2582.27091269,0.000411,120]
[422425784,1778936105000,-211.85,0.00041147,2]
[422425792,1778936105000,-184.599999,0.000412,55]
[422425793,1778936105000,-295.400001,0.000412,55]
[422425789,1778936105000,-1250.0,0.0004115,120]
[422425786,1778936105000,-326.05576048,0.0004115,120]
[422425790,1778936105000,-750.0,0.0004115,120]
[422425796,1778936105000,-160.0,0.000412,55]
[422425787,1778936105000,-475.70791114,0.0004115,120]
[422425781,1778936105000,-2582.27091269,0.000411,120]
[422425782,1778936105000,-2582.27091269,0.000411,120]
[422425780,1778936105000,-2582.27091269,0.000411,120]
[422425783,1778936105000,-2582.27,0.000411,120]
[422425785,1778936105000,-477.04,0.00041147,2]
[422425867,1778936106000,-250.0,0.00041584,120]
[422425865,1778936106000,-267.59260207,0.00041575,60]
[422425864,1778936106000,-675.52336163,0.00041573,7]
[422425868,1778936106000,-500.0,0.00041592,91]
[422425862,1778936106000,-150.0,0.00041558,120]
[422425861,1778936106000,-831.0,0.00041554,17]
[422425859,1778936106000,-250.0,0.00041538,120]
[422425858,1778936106000,-150.0,0.00041532,120]
[422425869,1778936106000,-150.0,0.00041599,120]
[422425870,1778936106000,-250.0,0.00041605,120]
[422425856,1778936106000,-287.9,0.0004153,120]
[422425857,1778936106000,-506.60414016,0.0004153,31]
[422425860,1778936106000,-250.0,0.00041538,120]
[422425863,1778936106000,-250.0,0.00041561,120]
[422425879,1778936106000,-1212.51,0.00041644,120]
[422425871,1778936106000,-6314.48,0.00041606,7]
[422425873,1778936106000,-459.34,0.00041617,120]
[422425872,1778936106000,-3508.04,0.00041606,7]
[422425883,1778936106000,-500.0,0.00041671,120]
[422425882,1778936106000,-250.0,0.00041664,120]
[422425880,1778936106000,-250.0,0.00041645,120]
[422425874,1778936106000,-250.0,0.00041625,120]
[422425878,1778936106000,-646.14,0.00041644,30]
[422425875,1778936106000,-250.0,0.00041625,120]
[422425877,1778936106000,-576.45,0.00041644,120]
[422425876,1778936106000,-3814.0,0.00041644,120]
[422425881,1778936106000,-250.0,0.00041664,120]
[422425852,1778936106000,-1029.0,0.00041518,120]
[422425866,1778936106000,-250.0,0.00041584,120]
[422425853,1778936106000,-500.0,0.00041518,120]
[422425832,1778936106000,-250.0,0.00041434,110]
[422425854,1778936106000,-528.32,0.00041518,120]
[422425824,1778936106000,-2572.17313446,0.0004137,120]
[422425823,1778936106000,-441.51714768,0.00041369,120]
[422425884,1778936106000,-322.10229082,0.00041678,60]
[422425828,1778936106000,-250.0,0.00041375,110]
[422425827,1778936106000,-2206.62818964,0.0004137,120]
[422425826,1778936106000,-649.19932097,0.0004137,120]
[422425829,1778936106000,-150.0,0.0004139,120]
[422425825,1778936106000,-6704.53630537,0.0004137,120]
[422425831,1778936106000,-6313.95,0.00041407,2]
[422425833,1778936106000,-250.0,0.00041434,110]
[422425844,1778936106000,-20241.8644447,0.000415,3]
[422425837,1778936106000,-572.18953623,0.00041437,120]
[422425834,1778936106000,-2969.42,0.00041435,120]
[422425846,1778936106000,-1083.46694545,0.000415,120]
[422425836,1778936106000,-2078.59,0.00041435,120]
[422425838,1778936106000,-2190.0,0.00041438,120]
[422425841,1778936106000,-250.0,0.00041488,110]
[422425843,1778936106000,-5000.0,0.000415,21]
[422425839,1778936106000,-250.0,0.00041462,110]
[422425840,1778936106000,-250.0,0.00041488,120]
[422425842,1778936106000,-500.0,0.00041499,45]
[422425845,1778936106000,-250.0,0.000415,120]
[422425850,1778936106000,-3684.0,0.00041518,120]
[422425847,1778936106000,-250.0,0.00041514,110]
[422425848,1778936106000,-724.0,0.00041518,120]
[422425849,1778936106000,-2452.0,0.00041518,120]
[422425851,1778936106000,-983.0,0.00041518,120]
[422425855,1778936106000,-500.0,0.00041518,120]
[422425835,1778936106000,-1212.51,0.00041435,120]
[422425886,1778936106000,-250.0,0.00041681,120]
[422425830,1778936106000,-250.0,0.00041405,106]
[422425895,1778936106000,-231.35,0.00041699,120]
[422425918,1778936106000,-500000.0,0.000417,120]
[422425920,1778936106000,-50000.0,0.000417,120]
[422425925,1778936106000,-500000.0,0.000417,120]
[422425929,1778936106000,-500000.0,0.000417,120]
[422425932,1778936106000,-150.0,0.00041703,120]
[422425930,1778936106000,-391302.03,0.000417,120]
[422425933,1778936106000,-500.0,0.0004172,62]
[422425928,1778936106000,-50000.0,0.000417,120]
[422425924,1778936106000,-50000.0,0.000417,120]
[422425923,1778936106000,-50000.0,0.000417,120]
[422425934,1778936106000,-224.30734011,0.00041742,7]
[422425935,1778936106000,-150.23862333,0.00041742,7]
[422425927,1778936106000,-50000.0,0.000417,120]
[422425912,1778936106000,-500000.0,0.000417,120]
[422425931,1778936106000,-50000.0,0.000417,120]
[422425937,1778936106000,-1476.04,0.0004175,120]
[422425936,1778936106000,-13898.4229335,0.00041747,2]
[422425939,1778936106000,-524.85765948,0.0004178,7]
[422425940,1778936106000,-594.50516611,0.0004178,7]
[422425938,1778936106000,-250.84,0.0004175,120]
[422425947,1778936106000,-467.87089423,0.0004178,7]
[422425942,1778936106000,-913.34834633,0.0004178,7]
[422425944,1778936106000,-320.4222598,0.0004178,7]
[422425945,1778936106000,-167.06157218,0.0004178,2]
[422425946,1778936106000,-1404.26999423,0.0004178,7]
[422425941,1778936106000,-530.9336362,0.0004178,7]
[422425943,1778936106000,-561.1786578,0.0004178,7]
[422425888,1778936106000,-2356.58,0.00041695,120]
[422425926,1778936106000,-500000.0,0.000417,120]
[422425915,1778936106000,-500000.0,0.000417,120]
[422425948,1778936106000,-520.03333181,0.0004178,7]
[422425916,1778936106000,-500000.0,0.000417,120]
[422425889,1778936106000,-7154.02,0.00041695,120]
[422425885,1778936106000,-1712.92933962,0.0004168,5]
[422425897,1778936106000,-250.0,0.00041699,120]
[422425887,1778936106000,-1450.4,0.00041694,120]
[422425896,1778936106000,-250.0,0.00041699,120]
[422425893,1778936106000,-250.0,0.00041699,120]
[422425890,1778936106000,-250.0,0.00041699,120]
[422425892,1778936106000,-157.34,0.00041699,120]
[422425913,1778936106000,-500000.0,0.000417,120]
[422425894,1778936106000,-250.0,0.00041699,120]
[422425898,1778936106000,-500.0,0.00041699,117]
[422425906,1778936106000,-500000.0,0.000417,120]
[422425903,1778936106000,-500000.0,0.000417,120]
[422425900,1778936106000,-3201.13,0.000417,120]
[422425891,1778936106000,-250.0,0.00041699,120]
[422425904,1778936106000,-500000.0,0.000417,120]
[422425902,1778936106000,-6173.16350975,0.000417,120]
[422425910,1778936106000,-500000.0,0.000417,120]
[422425919,1778936106000,-500000.0,0.000417,120]
[422425917,1778936106000,-50000.0,0.000417,120]
[422425921,1778936106000,-500000.0,0.000417,120]
[422425911,1778936106000,-50000.0,0.000417,120]
[422425914,1778936106000,-50000.0,0.000417,120]
[422425908,1778936106000,-500000.0,0.000417,120]
[422425907,1778936106000,-500000.0,0.000417,120]
[422425905,1778936106000,-500000.0,0.000417,120]
[422425899,1778936106000,-2031.42934355,0.000417,120]
[422425901,1778936106000,-7846.62555852,0.000417,120]
[422425909,1778936106000,-500000.0,0.000417,120]
[422425922,1778936106000,-500000.0,0.000417,120]
[422425990,1778936107000,-1552.75206154,0.000419,120]
[422425989,1778936107000,-1552.75206154,0.000419,120]
[422425991,1778936107000,-1552.75206154,0.000419,120]
[422425988,1778936107000,-1552.75206154,0.000419,120]
[422425987,1778936107000,-1552.75206154,0.000419,120]
[422425982,1778936107000,-100000.0,0.000419,120]
[422425986,1778936107000,-1552.75206154,0.000419,120]
[422425984,1778936107000,-1552.75206154,0.000419,120]
[422425979,1778936107000,-438.84152912,0.000419,120]
[422425985,1778936107000,-1552.75206154,0.000419,120]
[422425983,1778936107000,-1552.75206167,0.000419,120]
[422425992,1778936107000,-1552.75206154,0.000419,120]
[422425993,1778936107000,-1552.75206154,0.000419,120]
[422426008,1778936107000,-1100.0,0.00041973,30]
[422425994,1778936107000,-1552.75206154,0.000419,120]
[422425995,1778936107000,-1552.75206154,0.000419,120]
[422425996,1778936107000,-1552.75206154,0.000419,120]
[422425997,1778936107000,-1552.75206154,0.000419,120]
[422426000,1778936107000,-1552.75206154,0.000419,120]
[422425999,1778936107000,-1552.75206154,0.000419,120]
[422426003,1778936107000,-275.0,0.00041905,120]
[422426001,1778936107000,-1552.75206154,0.000419,120]
[422426002,1778936107000,-1552.75206154,0.000419,120]
[422426004,1778936107000,-166.6189267,0.00041906,120]
[422426005,1778936107000,-150.0,0.0004191,120]
[422426006,1778936107000,-216.0,0.0004191,120]
[422425981,1778936107000,-167.1,0.000419,120]
[422425998,1778936107000,-1552.75206154,0.000419,120]
[422425980,1778936107000,-1805.08938325,0.000419,30]
[422425961,1778936107000,-301.52291804,0.000418,90]
[422425977,1778936107000,-1814.703,0.000419,120]
[422426007,1778936107000,-301.0,0.00041918,120]
[422425951,1778936107000,-3479.40862156,0.0004179,120]
[422425950,1778936107000,-459.57981674,0.0004178,7]
[422425949,1778936107000,-508.58104639,0.0004178,7]
[422425952,1778936107000,-500.0,0.00041799,35]
[422425959,1778936107000,-207.66427993,0.000418,120]
[422425956,1778936107000,-1000.0,0.000418,30]
[422425955,1778936107000,-1000.0,0.000418,30]
[422425957,1778936107000,-211.0,0.000418,120]
[422425960,1778936107000,-255.90942829,0.000418,30]
[422425953,1778936107000,-334.63311112,0.00041799,35]
[422425954,1778936107000,-500.0,0.00041799,90]
[422425958,1778936107000,-2896.24107498,0.000418,120]
[422425978,1778936107000,-1814.7,0.000419,120]
[422425962,1778936107000,-1799.22046513,0.000418,120]
[422425972,1778936107000,-1387609.71698874,0.000419,2]
[422425963,1778936107000,-1296.58145655,0.000418,120]
[422425964,1778936107000,-1256.55167276,0.000418,120]
[422425965,1778936107000,-150.0,0.00041834,2]
[422425966,1778936107000,-162.0,0.00041839,3]
[422425967,1778936107000,-4263.15338408,0.00041877,120]
[422425968,1778936107000,-500.0,0.00041879,50]
[422425970,1778936107000,-500.0,0.00041893,120]
[422425969,1778936107000,-200.0,0.00041879,50]
[422425973,1778936107000,-2071.59161294,0.000419,5]
[422425974,1778936107000,-14752.3773,0.000419,60]
[422425975,1778936107000,-152.0,0.000419,120]
[422425976,1778936107000,-1814.703,0.000419,120]
[422425971,1778936107000,-604.0,0.000419,3]
[422426009,1778936107000,-1100.0,0.00041973,30]
[422426020,1778936107000,-1100.0,0.00041973,30]
[422426011,1778936107000,-1100.0,0.00041973,30]
[422426047,1778936107000,-1100.0,0.00041973,30]
[422426041,1778936107000,-1100.0,0.00041973,30]
[422426042,1778936107000,-1100.0,0.00041973,30]
[422426049,1778936107000,-1100.0,0.00041973,30]
[422426059,1778936107000,-200.0,0.00041979,40]
[422426060,1778936107000,-500.0,0.00041979,100]
[422426050,1778936107000,-1100.0,0.00041973,30]
[422426048,1778936107000,-1100.0,0.00041973,30]
[422426051,1778936107000,-1100.0,0.00041973,30]
[422426052,1778936107000,-1100.0,0.00041973,30]
[422426055,1778936107000,-249.0,0.00041975,120]
[422426053,1778936107000,-502.0,0.00041973,30]
[422426057,1778936107000,-200.0,0.00041976,60]
[422426058,1778936107000,-500.0,0.00041979,40]
[422426056,1778936107000,-500.0,0.00041976,60]
[422426054,1778936107000,-1044.0,0.00041975,120]
[422426067,1778936107000,-340.0,0.00041988,120]
[422426062,1778936107000,-297.17258581,0.00041979,40]
[422426010,1778936107000,-1100.0,0.00041973,30]
[422426066,1778936107000,-1918.0,0.00041988,120]
[422426063,1778936107000,-1314.0,0.00041988,120]
[422426064,1778936107000,-1043.0,0.00041988,120]
[422426065,1778936107000,-594.0,0.00041988,120]
[422426068,1778936107000,-208.16131623,0.00041998,60]
[422426069,1778936107000,-25000.0,0.00041998,60]
[422426061,1778936107000,-200.0,0.00041979,100]
[422426070,1778936107000,-25000.0,0.00041998,60]
[422426040,1778936107000,-1100.0,0.00041973,30]
[422426044,1778936107000,-1100.0,0.00041973,30]
[422426071,1778936107000,-25000.0,0.00041998,60]
[422426043,1778936107000,-1100.0,0.00041973,30]
[422426045,1778936107000,-1100.0,0.00041973,30]
[422426013,1778936107000,-1100.0,0.00041973,30]
[422426012,1778936107000,-1100.0,0.00041973,30]
[422426014,1778936107000,-1100.0,0.00041973,30]
[422426015,1778936107000,-1100.0,0.00041973,30]
[422426017,1778936107000,-1100.0,0.00041973,30]
[422426018,1778936107000,-1100.0,0.00041973,30]
[422426019,1778936107000,-1100.0,0.00041973,30]
[422426021,1778936107000,-1100.0,0.00041973,30]
[422426022,1778936107000,-1100.0,0.00041973,30]
[422426029,1778936107000,-1100.0,0.00041973,30]
[422426034,1778936107000,-1100.0,0.00041973,30]
[422426024,1778936107000,-1100.0,0.00041973,30]
[422426030,1778936107000,-1100.0,0.00041973,30]
[422426016,1778936107000,-1100.0,0.00041973,30]
[422426032,1778936107000,-1100.0,0.00041973,30]
[422426046,1778936107000,-1100.0,0.00041973,30]
[422426031,1778936107000,-1100.0,0.00041973,30]
[422426039,1778936107000,-1100.0,0.00041973,30]
[422426038,1778936107000,-1100.0,0.00041973,30]
[422426036,1778936107000,-1100.0,0.00041973,30]
[422426035,1778936107000,-1100.0,0.00041973,30]
[422426037,1778936107000,-1100.0,0.00041973,30]
[422426025,1778936107000,-1100.0,0.00041973,30]
[422426026,1778936107000,-1100.0,0.00041973,30]
[422426023,1778936107000,-1100.0,0.00041973,30]
[422426033,1778936107000,-1100.0,0.00041973,30]
[422426028,1778936107000,-1100.0,0.00041973,30]
[422426027,1778936107000,-1100.0,0.00041973,30]
[422426097,1778936108000,-200.0,0.00041999,59]
[422426107,1778936108000,-200.0,0.00041999,71]
[422426094,1778936108000,-500.0,0.00041999,71]
[422426096,1778936108000,-200.0,0.00041999,71]
[422426091,1778936108000,-500.0,0.00041999,61]
[422426099,1778936108000,-151.0,0.00041999,71]
[422426108,1778936108000,-500.0,0.00041999,30]
[422426109,1778936108000,-500.0,0.00041999,59]
[422426100,1778936108000,-670.58624095,0.00041999,61]
[422426103,1778936108000,-200.0,0.00041999,61]
[422426105,1778936108000,-500.0,0.00041999,120]
[422426101,1778936108000,-500.0,0.00041999,93]
[422426106,1778936108000,-200.0,0.00041999,120]
[422426098,1778936108000,-500.0,0.00041999,71]
[422426102,1778936108000,-200.0,0.00041999,93]
[422426110,1778936108000,-500.0,0.00041999,61]
[422426111,1778936108000,-500.0,0.00041999,71]
[422426095,1778936108000,-1377.42282659,0.00041999,71]
[422426104,1778936108000,-695.39793187,0.00041999,71]
[422426090,1778936108000,-200.0,0.00041999,61]
[422426083,1778936108000,-1280.88388878,0.00041999,59]
[422426086,1778936108000,-200.0,0.00041999,30]
[422426112,1778936108000,-151.0,0.00041999,30]
[422426072,1778936108000,-25000.0,0.00041998,60]
[422426084,1778936108000,-500.0,0.00041999,59]
[422426073,1778936108000,-5945.90087468,0.00041998,60]
[422426074,1778936108000,-198.57,0.00041999,14]
[422426075,1778936108000,-500.0,0.00041999,30]
[422426080,1778936108000,-183.36661227,0.00041999,30]
[422426081,1778936108000,-500.0,0.00041999,59]
[422426092,1778936108000,-151.0,0.00041999,61]
[422426082,1778936108000,-200.0,0.00041999,59]
[422426077,1778936108000,-1235.18214925,0.00041999,30]
[422426079,1778936108000,-151.0,0.00041999,30]
[422426078,1778936108000,-500.0,0.00041999,30]
[422426085,1778936108000,-151.0,0.00041999,59]
[422426087,1778936108000,-500.0,0.00041999,61]
[422426089,1778936108000,-1328.27659266,0.00041999,61]
[422426088,1778936108000,-623.58710448,0.00041999,30]
[422426093,1778936108000,-646.65982734,0.00041999,59]
[422426076,1778936108000,-200.0,0.00041999,30]
[422426113,1778936108000,-151.0,0.00041999,59]
[422426125,1778936108000,-203.86501493,0.00041999,30]
[422426116,1778936108000,-151.0,0.00041999,71]
[422426137,1778936108000,-251.1426026,0.00041999,59]
[422426141,1778936108000,-5873.08475299,0.00042,7]
[422426142,1778936108000,-164.99,0.00042,8]
[422426140,1778936108000,-500.0,0.00042,2]
[422426139,1778936108000,-153.04293607,0.00041999,30]
[422426143,1778936108000,-354.55406103,0.00042,7]
[422426145,1778936108000,-54035.26174317,0.00042,7]
[422426144,1778936108000,-44600.0,0.00042,10]
[422426138,1778936108000,-604.37011316,0.00041999,30]
[422426146,1778936108000,-1000000.0,0.00042,120]
[422426147,1778936108000,-1000000.0,0.00042,120]
[422426154,1778936108000,-500.0,0.00042,45]
[422426151,1778936108000,-1011361.19,0.00042,120]
[422426148,1778936108000,-1000000.0,0.00042,120]
[422426156,1778936108000,-500.0,0.00042,45]
[422426153,1778936108000,-157.42243404,0.00042,45]
[422426152,1778936108000,-297.97831699,0.00042,40]
[422426114,1778936108000,-151.0,0.00041999,61]
[422426149,1778936108000,-1000000.0,0.00042,120]
[422426132,1778936108000,-1000.0,0.00041999,61]
[422426150,1778936108000,-200.0,0.00042,120]
[422426135,1778936108000,-181.08010149,0.00041999,30]
[422426128,1778936108000,-1000.0,0.00041999,30]
[422426115,1778936108000,-151.0,0.00041999,30]
[422426117,1778936108000,-151.0,0.00041999,59]
[422426118,1778936108000,-151.0,0.00041999,93]